bitfinex/quotes_SOLUSD_20251002
["timestamp","ask_amount","ask_price","bid_price","bid_amount"]
[1759440941608,4.96240958,232.97,232.93,50.96]
[1759440948087,4.29182899,233.01,232.93,55.25301466]
[1759440948286,0.67,233.0,232.94,0.46]
[1759440948701,0.67,233.0,232.93,55.25301466]
[1759440948901,0.67,232.99,232.93,55.25301466]
[1759440949501,4.9621275,232.99,232.93,55.25301466]
[1759440950893,11.54647521,232.98,232.93,20.8]
[1759440951091,0.67,232.97,232.93,50.96]
[1759440951291,11.54647521,232.98,232.93,51.42]
[1759440952715,4.96247972,232.97,232.93,20.8]
[1759440953096,0.67,232.96,232.95,20.8]
[1759440953617,4.29247972,232.97,232.95,20.8]
[1759440953819,4.96247972,232.97,232.95,20.8]
[1759440954801,0.67,232.96,232.95,20.8]
[1759440955213,0.67,232.96,232.92,30.36]
[1759440956330,0.67,232.96,232.95,20.8]
[1759440956698,0.67,232.96,232.92,30.36]
[1759440956900,10.87647521,232.98,232.92,30.36]
[1759440957120,0.67,232.97,232.92,30.36]
[1759440957299,0.67,232.96,232.92,0.2]
[1759440958414,4.29276668,232.95,232.93,20.8]
[1759440958613,4.96276668,232.95,232.93,20.8]
[1759440958816,0.67,232.94,232.93,20.8]
[1759440959827,0.67,232.94,232.92,0.2]
[1759440960026,4.29276668,232.95,232.92,0.2]
[1759440960343,4.96276668,232.95,232.92,0.2]
[1759440960504,0.67,232.99,232.93,21.26]
[1759440960825,10.87647521,232.98,232.93,51.42]
[1759440961002,0.67,232.98,232.93,51.42]
[1759440961397,0.67,232.98,232.93,50.96]
[1759440961700,0.67,232.98,232.93,55.71313095]
[1759440961900,0.67,232.98,232.93,51.42]
[1759440962432,0.67,232.98,232.93,50.96]
[1759440962635,0.67,232.98,232.93,51.42]
[1759440963211,4.9622542,232.98,232.93,51.42]
[1759440964435,0.67,232.98,232.93,55.71312235]
[1759440964640,4.29205438,232.99,232.94,0.46]
[1759440964855,15.16833518,233.0,232.95,0.46]
[1759440965013,15.81833518,233.0,232.95,0.46]
[1759440965214,15.16833518,233.0,232.95,0.46]
[1759440965414,15.81833518,233.0,232.95,0.46]
[1759440965718,0.65,232.99,232.93,55.71312235]
[1759440965918,4.94204287,232.99,232.93,55.71312235]
[1759440966427,4.9418224,233.01,232.94,0.46]
[1759440968242,4.9418224,233.01,232.94,4.7529445]
[1759440968539,0.65,233.0,232.93,50.96]
[1759440968743,0.65,232.99,232.93,50.96]
[1759440969042,0.65,232.99,232.93,55.25312584]
[1759440970021,4.94210674,232.99,232.93,55.25312584]
[1759440970225,4.94210674,232.99,232.93,55.71312584]
[1759440970746,4.29210674,232.99,232.94,0.46]
[1759440971115,4.94210674,232.99,232.94,0.46]
[1759440974034,4.94210674,232.99,232.93,55.25312584]
[1759440974243,0.65,233.0,232.93,55.71312584]
[1759440974926,0.65,232.99,232.93,55.71312584]
[1759440975122,11.52647521,233.01,232.94,0.46]
[1759440975353,0.65,233.0,232.94,0.46]
[1759440975764,0.65,233.0,232.94,20.8]
[1759440975921,0.65,232.99,232.94,50.96]
[1759440976121,4.29239816,232.97,232.94,50.96]
[1759440976317,4.94239816,232.97,232.94,50.96]
[1759440977535,0.65,232.97,232.94,50.96]
[1759440980354,3.61115324,233.18,232.95,6.46086963]
[1759440980523,18.77504601,233.25,233.07,20.8]
[1759440980728,18.77504601,233.25,232.96,11.30573345]
[1759440980729,10.87647521,233.25,233.11,20.8]
[1759440980957,0.1,233.27,233.15,20.8]
[1759440981261,10.97647521,233.27,233.19,20.8]
[1759440981433,0.1,233.27,233.19,51.2]
[1759440982124,0.1,233.27,233.2,4.28816466]
[1759440982546,0.1,233.27,233.23,20.8]
[1759440982858,0.1,233.27,233.26,20.8]
[1759440983334,0.04152351,233.33,233.26,14.21636077]
[1759440983532,0.04152351,233.33,233.2,4.28816466]
[1759440983533,0.04152351,233.33,233.27,65.41636077]
[1759440984340,0.1,233.37,233.27,69.70321183]
[1759440984656,0.1,233.37,233.27,35.01636077]
[1759440984832,0.81,233.37,233.31,20.8]
[1759440985032,0.81,233.37,233.35,20.8]
[1759440985354,0.81,233.37,233.36,30.42]
[1759440986261,0.1,233.37,233.36,30.42]
[1759440991249,0.1,233.37,233.29,20.8]
[1759440991456,0.71,233.36,233.32,11.58647521]
[1759440991657,4.38508438,233.37,233.33,51.18]
[1759440991658,0.72,233.35,233.33,51.18]
[1759440991845,0.72,233.34,233.33,51.18]
[1759440992041,0.72,233.34,233.27,10.87647521]
[1759440992238,0.72,233.33,233.28,30.44]
[1759440992558,0.72,233.32,233.29,30.44]
[1759440992769,0.72,233.32,233.31,20.8]
[1759440993065,0.72,233.32,233.31,51.24]
[1759440993252,0.72,233.32,233.31,20.8]
[1759440993560,0.72,233.32,233.31,51.24]
[1759440995363,4.28567405,233.34,233.33,20.8]
[1759440995947,5.00567405,233.34,233.33,20.8]
[1759440996169,0.72,233.34,233.33,20.8]
[1759440998573,0.72,233.34,233.27,20.8]
[1759440998743,0.72,233.33,233.31,20.8]
[1759440998943,0.72,233.32,233.31,51.18]
[1759441001850,0.72,233.32,233.27,20.8]
[1759441002049,0.72,233.32,233.24,17.15820436]
[1759441002249,0.72,233.32,233.31,20.8]
[1759441002661,0.72,233.32,233.31,51.16]
[1759441002860,0.72,233.32,233.31,30.36]
[1759441003376,15.16184975,233.36,233.31,30.36]
[1759441003689,0.72,233.34,233.31,30.36]
[1759441003854,0.72,233.33,233.31,30.36]
[1759441004270,0.72,233.33,233.27,20.8]
[1759441004462,0.72,233.33,233.31,20.8]
[1759441004664,0.72,233.33,233.31,51.14]
[1759441004875,0.72,233.32,233.31,51.14]
[1759441006179,4.28551229,233.35,233.31,51.14]
[1759441006482,0.72,233.34,233.31,51.14]
[1759441006678,4.28551229,233.35,233.31,51.14]
[1759441006883,0.72,233.33,233.31,51.14]
[1759441010166,5.00577712,233.33,233.27,20.8]
[1759441010366,5.00577712,233.33,233.31,20.8]
[1759441010574,0.72,233.32,233.31,51.1]
[1759441011786,0.72,233.32,233.15,5.20788088]
[1759441011787,5.00595919,233.32,233.15,5.20788088]
[1759441012085,0.72,233.31,233.22,10.87647521]
[1759441012280,0.72,233.31,233.26,20.8]
[1759441012466,0.72,233.3,233.29,20.8]
[1759441012672,0.72,233.3,233.29,30.3]
[1759441013290,0.72,233.32,233.29,30.3]
[1759441013493,0.72,233.31,233.29,30.3]
[1759441014284,0.72,233.3,233.29,30.3]
[1759441016087,4.28595919,233.32,233.29,30.3]
[1759441016277,0.72,233.31,233.29,30.3]
[1759441017467,4.28595919,233.32,233.25,20.8]
[1759441017673,0.72,233.31,233.29,20.8]
[1759441017989,0.72,233.3,233.29,51.06]
[1759441019781,0.72,233.3,233.29,30.24]
[1759441020176,0.72,233.32,233.29,30.24]
[1759441020496,5.00596668,233.32,233.29,30.24]
[1759441020798,4.28596668,233.32,233.29,30.24]
[1759441021089,4.28596668,233.32,233.25,20.8]
[1759441021090,0.72,233.31,233.25,20.8]
[1759441021294,0.72,233.31,233.29,20.8]
[1759441021501,5.00615118,233.31,233.29,51.04]
[1759441021991,0.71,233.3,233.29,51.04]
[1759441022191,4.28615118,233.31,233.29,51.04]
[1759441022378,0.71,233.31,233.29,51.04]
[1759441023292,0.71,233.31,233.29,20.8]
[1759441023485,4.99618645,233.31,233.29,30.22]
[1759441023881,0.71,233.31,233.29,30.22]
[1759441025585,4.99620123,233.31,233.29,30.22]
[1759441025893,0.71,233.31,233.29,30.22]
[1759441028295,4.99615497,233.31,233.29,30.22]
[1759441028606,0.71,233.3,233.17,9.53417756]
[1759441028802,4.2866941,233.28,233.21,20.8]
[1759441028977,0.71,233.27,233.25,20.8]
[1759441029173,4.2866941,233.28,233.25,51.02]
[1759441029374,0.71,233.27,233.25,51.02]
[1759441029573,0.71,233.26,233.25,51.02]
[1759441030376,0.71,233.26,233.24,51.02]
[1759441031000,10.87647521,233.29,233.24,51.02]
[1759441031190,0.71,233.25,233.24,51.02]
[1759441031511,0.71,233.27,233.26,20.8]
[1759441034483,4.99687786,233.27,233.26,20.8]
[1759441036379,2.73407188,233.33,233.26,20.8]
[1759441036380,0.71,233.31,233.26,20.8]
[1759441036588,10.87647521,233.29,233.26,20.8]
[1759441036788,11.58647521,233.29,233.26,30.18]
[1759441037499,10.87647521,233.29,233.26,30.18]
[1759441037807,11.58647521,233.29,233.26,30.18]
[1759441038105,0.71,233.29,233.26,30.18]
[1759441038675,15.16225072,233.33,233.26,30.18]
[1759441039007,0.71,233.32,233.26,30.18]
[1759441039192,0.71,233.31,233.26,30.18]
[1759441039395,4.99625077,233.31,233.26,30.18]
[1759441039702,0.71,233.3,233.26,30.18]
[1759441039901,0.71,233.29,233.26,30.18]
[1759441042212,0.71,233.31,233.26,30.18]
[1759441042411,0.71,233.3,233.26,30.18]
[1759441042711,0.71,233.29,233.26,30.18]
[1759441042914,0.71,233.28,233.26,30.18]
[1759441043309,4.99636727,233.3,233.26,30.18]
[1759441043510,4.28636727,233.3,233.26,30.18]
[1759441043710,11.58647521,233.29,233.2,20.8]
[1759441044009,0.71,233.28,233.24,20.8]
[1759441044206,10.87647521,233.29,233.24,20.8]
[1759441044391,0.71,233.28,233.24,20.8]
[1759441044596,0.71,233.27,233.23,30.16]
[1759441044800,0.71,233.26,233.23,30.16]
[1759441045105,4.2870821,233.26,233.23,30.16]
[1759441045413,0.71,233.25,233.23,30.16]
[1759441047310,4.2866941,233.28,233.23,30.16]
[1759441047617,0.71,233.26,233.23,30.16]
[1759441048004,10.87647521,233.27,233.23,30.16]
[1759441048309,10.87647521,233.24,233.19,30.14]
[1759441048488,0.71,233.23,233.19,30.14]
[1759441048688,0.71,233.22,233.19,30.14]
[1759441051017,0.71,233.21,233.19,30.14]
[1759441052509,5.00775095,233.23,233.19,30.14]
[1759441052687,0.72,233.22,233.19,30.14]
[1759441053627,0.72,233.22,233.19,96.14]
[1759441054526,0.72,233.22,233.19,30.14]
[1759441056621,0.72,233.21,233.19,30.14]
[1759441057432,4.28740539,233.25,233.19,30.14]
[1759441057636,0.72,233.28,233.22,20.8]
[1759441057808,0.72,233.28,233.23,30.16]
[1759441059309,5.00675844,233.28,233.23,30.16]
[1759441059628,0.72,233.27,233.23,30.16]
[1759441064731,0.72,233.26,233.23,30.16]
[1759441065418,0.72,233.27,233.23,30.16]
[1759441067048,15.00278622,233.29,233.23,30.16]
[1759441067210,0.72,233.26,233.23,30.16]
[1759441068016,0.72,233.28,233.23,30.16]
[1759441068224,0.72,233.27,233.23,30.16]
[1759441068836,5.00696272,233.27,233.23,30.16]
[1759441069841,5.00696272,233.27,233.22,20.8]
[1759441070146,5.00696272,233.27,233.24,30.14]
[1759441070147,0.72,233.27,233.24,30.14]
[1759441072216,4.28671947,233.28,233.24,30.14]
[1759441072416,5.00652224,233.29,233.24,30.14]
[1759441074340,5.00627757,233.31,233.24,30.14]
[1759441075452,0.72,233.3,233.24,30.14]
[1759441076348,5.00638586,233.3,233.24,30.14]
[1759441078242,0.72,233.3,233.24,30.14]
[1759441080360,0.72,233.3,233.24,96.14]
[1759441080526,0.72,233.29,233.24,66.0]
[1759441080733,0.72,233.28,233.21,30.14]
[1759441080947,10.87647521,233.26,233.12,4.74779365]
[1759441081254,10.87647521,233.24,233.13,30.14]
[1759441081451,0.71,233.23,233.13,30.14]
[1759441081652,10.87647521,233.21,233.16,20.8]
[1759441081854,0.71,233.2,233.16,20.8]
[1759441082056,0.71,233.19,233.16,20.8]
[1759441082356,0.71,233.18,233.16,20.8]
[1759441082567,0.71,233.18,233.13,20.8]
[1759441082773,0.71,233.18,233.13,50.94]
[1759441083055,4.99854184,233.18,233.13,50.94]
[1759441084145,0.71,233.17,233.13,50.94]
[1759441084340,0.71,233.19,233.13,50.94]
[1759441085060,0.71,233.18,233.13,50.94]
[1759441085748,4.99854053,233.18,233.13,50.94]
[1759441088559,10.87647521,233.21,233.13,50.94]
[1759441088560,0.71,233.21,233.13,50.94]
[1759441089665,4.99809548,233.21,233.13,50.94]
[1759441090336,0.71,233.21,233.13,50.79]
[1759441090870,4.99799352,233.21,233.13,50.79]
[1759441091065,4.28799352,233.21,233.13,50.79]
[1759441091440,0.71,233.22,233.13,50.79]
[1759441091635,0.71,233.25,233.13,61.25672171]
[1759441091855,0.71,233.25,233.14,6.17732131]
[1759441092046,0.71,233.25,233.14,19.05313409]
[1759441092248,0.71,233.25,233.17,20.8]
[1759441092249,4.99724993,233.25,233.17,20.8]
[1759441092562,4.99702706,233.27,233.21,20.8]
[1759441092774,4.99702706,233.27,233.22,30.14]
[1759441093068,0.71,233.26,233.22,30.14]
[1759441093260,0.71,233.29,233.22,30.14]
[1759441093634,10.87647521,233.28,233.21,20.8]
[1759441093841,0.71,233.27,233.19,20.8]
[1759441094157,10.87647521,233.25,233.19,20.8]
[1759441094457,10.87647521,233.23,233.16,30.14]
[1759441094663,0.71,233.22,233.16,50.94]
[1759441095051,0.71,233.22,233.16,30.14]
[1759441095364,4.28798078,233.21,233.16,30.14]
[1759441096252,4.28779692,233.22,233.16,30.14]
[1759441096455,0.71,233.21,233.16,30.14]
[1759441098068,4.28815159,233.21,233.16,30.14]
[1759441098370,4.99815159,233.21,233.16,30.14]
[1759441100870,0.71,233.2,233.16,30.14]
[1759441102174,4.99829289,233.2,233.16,30.14]
[1759441103265,4.28829289,233.2,233.16,30.14]
[1759441103956,4.28829289,233.2,233.16,96.04]
[1759441104487,4.97829289,233.2,233.16,96.04]
[1759441106970,4.28829289,233.2,233.16,96.04]
[1759441108369,4.28798078,233.21,233.16,96.04]
[1759441108678,4.97798078,233.21,233.16,96.04]
[1759441111686,4.97798078,233.21,233.16,65.9]
[1759441111892,4.97798078,233.21,233.17,30.14]
[1759441112187,4.97798078,233.21,233.16,65.9]
[1759441112369,4.97798078,233.21,233.18,30.14]
[1759441112569,4.28779692,233.22,233.18,30.14]
[1759441113762,4.28755525,233.24,233.18,30.14]
[1759441114491,4.97755525,233.24,233.18,30.14]
[1759441117298,0.69,233.24,233.18,30.14]
[1759441117484,0.69,233.26,233.21,20.8]
[1759441117680,0.69,233.25,233.22,30.14]
[1759441117887,15.16348838,233.27,233.22,30.14]
[1759441117888,0.69,233.24,233.22,30.14]
[1759441118190,0.69,233.25,233.22,30.14]
[1759441118498,0.69,233.24,233.22,30.14]
[1759441119487,4.97744185,233.24,233.22,30.14]
[1759441121706,0.69,233.24,233.22,30.14]
[1759441122580,4.9776021,233.24,233.22,30.14]
[1759441127682,4.9776021,233.24,233.22,96.04]
[1759441128402,4.2876021,233.24,233.22,96.04]
[1759441128613,4.9776021,233.24,233.22,65.9]
[1759441128813,4.9776021,233.24,233.23,30.14]
[1759441131008,4.9776021,233.24,233.22,65.9]
[1759441131184,4.9776021,233.24,233.23,30.14]
[1759441131502,4.9776021,233.24,233.22,65.9]
[1759441131813,4.9776021,233.24,233.23,30.14]
[1759441132989,4.9776021,233.24,233.22,65.9]
[1759441133196,4.9776021,233.24,233.23,30.14]
[1759441137410,4.9776021,233.24,233.18,20.8]
[1759441137603,4.9776021,233.24,233.19,30.14]
[1759441139209,0.69,233.24,233.22,20.8]
[1759441139556,0.69,233.24,233.23,30.14]
[1759441139729,4.97744047,233.24,233.23,30.14]
[1759441140424,4.97744047,233.24,233.19,20.8]
[1759441140722,4.97744047,233.24,233.2,30.14]
[1759441141515,0.69,233.23,233.22,20.8]
[1759441141706,0.69,233.23,233.22,50.92]
[1759441142609,0.69,233.23,233.22,116.82]
[1759441144022,0.69,233.23,233.22,86.7]
[1759441144206,0.69,233.23,233.22,116.82]
[1759441144921,0.69,233.23,233.22,86.7]
[1759441145121,0.69,233.23,233.22,116.82]
[1759441146727,0.67,233.24,233.22,116.82]
[1759441146921,0.67,233.28,233.22,50.92]
[1759441147222,0.67,233.27,233.22,50.92]
[1759441147522,4.28660783,233.29,233.22,50.92]
[1759441147523,0.67,233.26,233.22,50.92]
[1759441147725,0.67,233.25,233.22,50.92]
[1759441148713,0.67,233.25,233.19,15.16478644]
[1759441148914,0.67,233.25,233.23,20.8]
[1759441149116,0.67,233.25,233.24,30.12]
[1759441150803,0.67,233.29,233.26,20.8]
[1759441151006,0.67,233.28,233.27,30.12]
[1759441151421,0.67,233.29,233.27,30.12]
[1759441151626,0.67,233.29,233.27,50.92]
[1759441152210,10.87647521,233.32,233.27,50.92]
[1759441152408,4.95631616,233.31,233.27,50.92]
[1759441152616,11.54647521,233.3,233.29,20.8]
[1759441152813,11.54647521,233.3,233.29,50.92]
[1759441154309,11.54647521,233.3,233.29,30.12]
[1759441155112,11.54647521,233.3,233.25,20.8]
[1759441155437,11.54647521,233.3,233.22,17.16078671]
[1759441155438,10.87647521,233.3,233.29,20.8]
[1759441155613,10.87647521,233.3,233.29,50.92]
[1759441155816,11.54647521,233.3,233.25,20.8]
[1759441156023,0.67,233.29,233.25,20.8]
[1759441156232,0.67,233.29,233.28,20.8]
[1759441156538,0.67,233.29,233.28,50.92]
[1759441158634,0.67,233.29,233.21,20.8]
[1759441158934,0.67,233.29,233.25,20.8]
[1759441159134,0.67,233.29,233.28,20.8]
[1759441159439,0.67,233.29,233.28,50.92]
[1759441160127,10.87647521,233.3,233.28,50.92]
[1759441160319,11.54647521,233.3,233.28,50.92]
[1759441160738,5.70926658,233.36,233.28,50.92]
[1759441162238,14.99892864,233.35,233.28,50.92]
[1759441162736,10.87647521,233.34,233.28,50.92]
[1759441164016,10.87647521,233.32,233.18,0.67]
[1759441164242,10.87647521,233.3,233.22,20.8]
[1759441164438,0.71,233.29,233.23,30.1]
[1759441165439,4.2866941,233.28,233.23,30.1]
[1759441165628,0.71,233.27,233.18,0.67]
[1759441165937,10.87647521,233.26,233.17,10.87647521]
[1759441166134,0.71,233.25,233.18,30.1]
[1759441167232,4.28742925,233.24,233.18,30.1]
[1759441170027,15.00600239,233.24,233.18,30.1]
[1759441170235,11.58647521,233.23,233.15,20.8]
[1759441170435,11.58647521,233.23,233.16,30.1]
[1759441172247,10.87647521,233.21,233.13,20.8]
[1759441172449,10.87647521,233.21,233.14,30.1]
[1759441172749,15.00728924,233.22,233.13,30.1]
[1759441172750,10.87647521,233.19,233.13,30.1]
[1759441172930,10.87647521,233.21,233.13,30.1]
[1759441173134,0.71,233.18,233.13,30.1]
[1759441174254,4.28871638,233.17,233.13,30.1]
[1759441175238,15.72050734,233.17,233.11,21.47]
[1759441175438,15.72050734,233.17,233.12,30.1]
[1759441176839,15.01050734,233.17,233.13,0.67]
[1759441177529,15.01050734,233.17,233.12,30.1]
[1759441177730,10.72179096,233.17,233.12,30.77]
[1759441178136,23.75726351,233.21,233.12,30.77]
[1759441178137,4.2883337,233.2,233.15,20.8]
[1759441178342,4.2883337,233.2,233.16,30.77]
[1759441179352,10.71996221,233.21,233.16,30.77]
[1759441180743,10.71996221,233.21,233.16,30.1]
[1759441180937,0.71,233.2,233.16,30.1]
[1759441181260,10.71996221,233.21,233.16,30.77]
[1759441181462,15.00794299,233.21,233.16,30.77]
[1759441182366,0.71,233.2,233.16,30.1]
[1759441182658,0.71,233.19,233.16,30.1]
[1759441183446,4.28853246,233.18,233.16,30.1]
[1759441185360,10.71996221,233.21,233.16,30.1]
[1759441185561,0.71,233.2,233.16,30.1]
[1759441186669,0.71,233.19,233.11,0.67]
[1759441186849,0.71,233.19,233.12,30.1]
[1759441187169,0.71,233.18,233.12,30.1]
[1759441187348,11.43140538,233.18,233.12,30.77]
[1759441187543,10.72140538,233.18,233.12,30.77]
[1759441187749,0.71,233.18,233.13,0.69]
[1759441187949,10.87647521,233.19,233.13,0.69]
[1759441188352,11.58647521,233.19,233.13,0.69]
[1759441189557,15.00986362,233.18,233.13,0.69]
[1759441190948,15.00986362,233.18,233.14,0.69]
[1759441191853,15.10986362,233.18,233.12,0.69]
[1759441195562,27.99175811,233.18,233.12,0.69]
[1759441196265,15.10986362,233.18,233.12,0.69]
[1759441196649,27.99175811,233.18,233.12,0.69]
[1759441196860,15.10986362,233.18,233.12,0.69]
[1759441198880,70.32019194,233.18,233.06,12.88134137]
[1759441199050,70.32019194,233.18,233.05,0.2]
[1759441199051,28.31682944,233.17,232.95,20.2]
[1759441199252,28.31682944,233.17,232.95,0.2]
[1759441199253,1.75244501,233.01,232.95,0.2]
[1759441199608,32.07244501,233.01,232.95,0.2]
[1759441199764,12.89241281,233.0,232.95,0.2]
[1759441200185,12.89241281,233.0,232.96,0.69]
[1759441200474,16.77068143,233.05,232.96,20.0]
[1759441200675,16.77068143,233.05,232.95,0.2]
[1759441200676,1.75244501,233.01,232.95,0.2]
[1759441200875,1.75244501,232.99,232.95,0.2]
[1759441201081,30.46,232.98,232.95,0.2]
[1759441201381,10.87647521,232.99,232.95,0.2]
[1759441201682,32.21244501,233.0,232.95,0.2]
[1759441201880,10.87647521,232.99,232.95,0.2]
[1759441203181,15.02274872,232.98,232.95,0.2]
[1759441209386,45.46274872,232.98,232.95,0.2]
[1759441209761,4.29221392,232.98,232.95,0.2]
[1759441210070,15.02274872,232.98,232.95,0.2]
[1759441211970,10.7305348,232.98,232.95,0.2]
[1759441214694,10.7305348,232.98,232.92,0.2]
[1759441214695,12.62892022,232.97,232.92,0.2]
[1759441214991,12.62892022,232.97,232.9,0.2]
[1759441214992,10.87647521,232.94,232.9,0.2]
[1759441215192,15.16997913,232.91,232.9,0.2]
[1759441215369,45.60997913,232.91,232.9,0.2]
[1759441222481,34.73350392,232.91,232.9,0.2]
[1759441223606,4.29350392,232.91,232.9,0.2]
[1759441223812,34.69350392,232.91,232.9,0.2]
[1759441225211,30.4,232.91,232.9,0.2]
[1759441226218,34.69350392,232.91,232.9,0.2]
[1759441226607,4.29350392,232.91,232.9,0.2]
[1759441226810,34.67350392,232.91,232.9,0.2]
[1759441229721,36.42594893,232.91,232.9,0.2]
[1759441229920,15.16997913,232.91,232.9,0.2]
[1759441230130,45.52997913,232.91,232.9,0.2]
[1759441230606,15.16997913,232.91,232.9,0.2]
[1759441230808,45.52997913,232.91,232.9,0.2]
[1759441234027,45.50997913,232.91,232.9,0.2]
[1759441234410,15.16997913,232.91,232.9,0.2]
[1759441234610,45.50997913,232.91,232.9,0.2]
[1759441236035,15.16997913,232.91,232.9,0.2]
[1759441236235,45.50997913,232.91,232.9,0.2]
[1759441239330,15.16997913,232.91,232.9,0.2]
[1759441239550,45.48997913,232.91,232.9,0.2]
[1759441239716,45.46997913,232.91,232.9,1e-08]
[1759441241240,47.22242414,232.91,232.9,1e-08]
[1759441242322,47.22242414,232.91,232.83,0.67]
[1759441242323,10.87647521,232.9,232.83,0.67]
[1759441242523,32.05244501,232.89,232.83,0.67]
[1759441243533,32.05244501,232.89,232.79,0.67]
[1759441243738,10.87647521,232.86,232.8,0.67]
[1759441244311,1.75244501,232.87,232.8,0.67]
[1759441244312,10.87647521,232.84,232.8,0.67]
[1759441244521,10.87647521,232.84,232.81,0.67]
[1759441244737,30.3,232.83,232.81,0.67]
[1759441245047,30.3,232.82,232.81,0.67]
[1759441246438,34.59516364,232.82,232.81,0.67]
[1759441248217,34.59516364,232.82,232.77,0.67]
[1759441248218,10.87647521,232.81,232.77,0.67]
[1759441248442,10.87647521,232.79,232.76,0.2]
[1759441248655,30.34,232.78,232.76,0.87]
[1759441249356,12.62892022,232.81,232.76,0.2]
[1759441249357,41.21647521,232.77,232.76,0.2]
[1759441249924,10.87647521,232.77,232.76,0.2]
[1759441250121,45.51256147,232.77,232.76,0.2]
[1759441250314,10.87647521,232.76,232.72,0.87]
[1759441250548,30.36,232.75,232.72,0.87]
[1759441250919,30.36,232.75,232.72,0.2]
[1759441250920,10.87647521,232.74,232.72,0.2]
[1759441251125,30.36,232.73,232.72,0.2]
[1759441251321,25.91277713,232.77,232.72,0.2]
[1759441251526,41.23647521,232.76,232.72,0.2]
[1759441251737,15.03630192,232.77,232.73,0.67]
[1759441251738,30.38,232.75,232.73,0.67]
[1759441252358,4.29664002,232.74,232.73,0.67]
[1759441254446,34.65664002,232.74,232.73,0.67]
[1759441254649,34.65664002,232.74,232.72,0.2]
[1759441257247,10.87647521,232.73,232.72,0.2]
[1759441259346,15.17329985,232.73,232.72,0.2]
[1759441260158,34.65682464,232.73,232.72,0.87]
[1759441263553,4.29682464,232.73,232.72,0.87]
[1759441263751,34.65682464,232.73,232.72,0.87]
[1759441264740,4.29682464,232.73,232.72,0.87]
[1759441264947,34.65682464,232.73,232.72,0.87]
[1759441266249,4.29682464,232.73,232.72,0.87]
[1759441266457,34.65682464,232.73,232.72,0.87]
[1759441268348,4.29682464,232.73,232.72,0.87]
[1759441268552,34.63682464,232.73,232.72,0.87]
[1759441271061,4.29664002,232.74,232.72,0.87]
[1759441271263,30.32,232.73,232.72,0.2]
[1759441271969,30.32,232.73,232.72,0.92]
[1759441272168,4.29664002,232.74,232.72,0.92]
[1759441272365,4.29664002,232.74,232.73,0.72]
[1759441273257,15.03772328,232.75,232.73,0.72]
[1759441273668,45.35772328,232.75,232.73,0.72]
[1759441274375,10.74126786,232.75,232.73,0.72]
[1759441274752,4.29608626,232.77,232.73,0.72]
[1759441275062,30.32,232.76,232.73,0.72]
[1759441276074,4.29645542,232.75,232.73,20.72]